bitfinex-derivatives/quotes_BTCF0:USTF0_20241023
["timestamp","ask_amount","ask_price","bid_price","bid_amount"]
[1729661884305,0.002235,67138.0,67134.0,0.3608]
[1729661884616,0.002235,67138.0,67136.0,0.059612]
[1729661884812,0.002235,67138.0,67137.0,0.0317]
[1729661885516,0.172235,67138.0,67137.0,0.0317]
[1729661886219,0.172235,67138.0,67137.0,0.091312]
[1729661886416,0.172235,67138.0,67137.0,0.0317]
[1729661889718,0.21955169,67138.0,67137.0,0.0317]
[1729661890915,0.27916369,67138.0,67131.0,0.0315]
[1729661891115,0.17,67132.0,67131.0,0.091317]
[1729661891318,0.21731669,67132.0,67131.0,0.091317]
[1729661892719,0.04731669,67132.0,67131.0,0.091317]
[1729661894212,0.002235,67138.0,67137.0,0.059612]
[1729661894412,0.002235,67138.0,67137.0,0.590412]
[1729661895009,0.002235,67138.0,67137.0,0.420412]
[1729661895322,0.172235,67138.0,67137.0,0.420412]
[1729661899624,0.002235,67138.0,67137.0,0.420412]
[1729661901515,0.002235,67138.0,67137.0,0.590412]
[1729661902026,0.002235,67138.0,67137.0,0.420412]
[1729661906033,0.229609,67141.0,67137.0,0.420412]
[1729661906233,0.04719463,67140.0,67137.0,0.420412]
[1729661906431,0.04719463,67139.0,67137.0,0.420412]
[1729661906621,0.21717481,67138.0,67137.0,0.420412]
[1729661907929,0.04717481,67138.0,67137.0,0.420412]
[1729661909736,0.04717481,67138.0,67137.0,0.590412]
[1729661910421,0.059606,67145.0,67142.0,0.059607]
[1729661910631,0.059607,67143.0,67142.0,0.059607]
[1729661910930,0.059611,67138.0,67137.0,0.00104]
[1729661911131,0.059614,67136.0,67134.0,0.08594982]
[1729661911434,0.059614,67136.0,67134.0,0.08614982]
[1729661911641,0.059614,67135.0,67134.0,0.0002]
[1729661912333,0.11426412,67135.0,67134.0,0.0002]
[1729661913238,0.16133382,67135.0,67134.0,0.0002]
[1729661913442,0.059614,67135.0,67134.0,0.0002]
[1729661920539,0.059616,67132.0,67131.0,0.0002]
[1729661920840,0.229616,67132.0,67131.0,0.0004]
[1729661927235,0.27566218,67132.0,67131.0,0.0004]
[1729661930448,0.63646218,67132.0,67131.0,0.0004]
[1729661932445,0.73538218,67132.0,67131.0,0.0004]
[1729661932845,0.63646218,67132.0,67131.0,0.0004]
[1729661933037,0.73538218,67132.0,67131.0,0.0004]
[1729661934440,0.37458218,67132.0,67131.0,0.0004]
[1729661935144,0.229616,67132.0,67131.0,0.0004]
[1729661935344,0.328536,67132.0,67131.0,0.0004]
[1729661936145,0.26868,67132.0,67131.0,0.0004]
[1729661936353,0.17,67132.0,67131.0,0.0004]
[1729661937444,0.17,67132.0,67131.0,0.060017]
[1729661940742,0.02705042,67136.0,67131.0,0.0004]
[1729661940945,0.229612,67137.0,67135.0,0.059614]
[1729661942052,0.3608,67138.0,67132.0,0.04464656]
[1729661942348,0.3608,67138.0,67136.0,0.059613]
[1729661942349,0.10085405,67137.0,67136.0,0.059613]
[1729661942835,0.10131523,67139.0,67134.0,0.0308]
[1729661943040,0.10131523,67138.0,67137.0,0.059612]
[1729661943241,0.17,67138.0,67137.0,0.059612]
[1729661943443,0.27131523,67138.0,67134.0,0.090615]
[1729661943643,0.05961,67139.0,67134.0,0.090815]
[1729661943644,0.17,67135.0,67134.0,0.090815]
[1729661943844,0.27131523,67135.0,67134.0,0.090815]
[1729661944149,0.27131523,67135.0,67134.0,0.0312]
[1729661944341,0.27131523,67135.0,67134.0,0.0004]
[1729661944854,0.27061001,67135.0,67134.0,0.0004]
[1729661946153,0.10061001,67135.0,67134.0,0.060015]
[1729661949153,0.04655614,67135.0,67134.0,0.060015]
[1729661949344,0.0468566,67136.0,67134.0,0.060015]
[1729661949555,0.059613,67137.0,67134.0,0.060015]
[1729661949556,0.0468566,67135.0,67134.0,0.060015]
[1729661950257,0.059613,67137.0,67134.0,0.060015]
[1729661950456,0.059613,67137.0,67135.0,0.04466327]
[1729661950846,0.17,67138.0,67136.0,0.10427527]
[1729661951060,0.17,67138.0,67137.0,0.04466327]
[1729661952062,0.229611,67138.0,67137.0,0.04466327]
[1729661952269,0.059613,67137.0,67136.0,0.04466327]
[1729661952566,0.229613,67137.0,67136.0,0.0002]
[1729661952750,0.229613,67137.0,67136.0,0.04486327]
[1729661954662,0.229613,67137.0,67136.0,0.0002]
[1729661957449,0.229613,67137.0,67136.0,0.04485667]
[1729661959450,0.229613,67137.0,67136.0,0.0002]
[1729661959657,0.229613,67137.0,67136.0,0.361]
[1729661960257,0.169613,67137.0,67136.0,0.361]
[1729661964460,0.169613,67137.0,67136.0,0.0002]
[1729661964666,0.02559547,67142.0,67139.0,0.05961]
[1729661964871,0.059608,67142.0,67139.0,0.05961]
[1729661965172,0.16376621,67141.0,67136.0,0.3933]
[1729661965372,0.11,67145.0,67141.0,0.059608]
[1729661965672,0.42235369,67145.0,67142.0,0.059607]
[1729661965972,0.16379904,67144.0,67142.0,0.059607]
[1729661966158,0.16379904,67144.0,67142.0,0.530407]
[1729661966359,0.10162593,67143.0,67142.0,0.530407]
[1729661966556,0.10162593,67145.0,67142.0,0.530407]
[1729661966756,0.10162593,67145.0,67144.0,0.059606]
[1729661966961,0.10192365,67145.0,67144.0,0.059606]
[1729661967168,0.10192365,67145.0,67142.0,0.47184]
[1729661967169,0.06183351,67152.0,67148.0,0.059601]
[1729661967368,0.1022667,67151.0,67150.0,0.11]
[1729661967672,0.1022667,67151.0,67150.0,0.0596]
[1729661968271,0.10226306,67151.0,67150.0,0.0596]
[1729661972277,0.11223451,67152.0,67150.0,0.0596]
[1729661976376,0.11223451,67152.0,67147.0,0.4708]
[1729661976575,0.11223451,67152.0,67147.0,0.11]
[1729661976873,0.11223451,67152.0,67147.0,0.169803]
[1729661980285,0.17183351,67152.0,67147.0,0.169803]
[1729661981085,0.17183351,67152.0,67147.0,0.530603]
[1729661981387,0.17183351,67152.0,67149.0,0.059601]
[1729661981993,0.11223451,67152.0,67147.0,0.472]
[1729661982196,0.11223451,67152.0,67150.0,0.0596]
[1729661982497,0.17183351,67152.0,67148.0,0.059602]
[1729661982798,0.17183351,67152.0,67148.0,0.059802]
[1729661984386,0.0475623,67151.0,67148.0,0.059802]
[1729661984601,0.0475623,67150.0,67148.0,0.059802]
[1729661984805,0.0475623,67149.0,67148.0,0.059802]
[1729661985400,0.1575623,67149.0,67148.0,0.059802]
[1729661986604,0.1575623,67149.0,67148.0,0.0002]
[1729661987005,0.11,67149.0,67148.0,0.0002]
[1729661994105,0.11,67149.0,67148.0,0.04481538]
[1729661994913,0.11,67149.0,67148.0,0.0002]
[1729661994914,0.15767744,67149.0,67148.0,0.0002]
[1729661995119,0.21305403,67149.0,67148.0,0.0002]
[1729661995306,0.27265503,67149.0,67148.0,0.0002]
[1729661995505,0.33435503,67149.0,67148.0,0.0002]
[1729661995718,0.33358426,67149.0,67148.0,0.0002]
[1729661999215,0.27863142,67149.0,67148.0,0.0002]
[1729662000735,0.33409102,67149.0,67148.0,0.0002]
[1729662000901,0.27863142,67149.0,67148.0,0.0002]
[1729662001107,0.33404852,67149.0,67148.0,0.0002]
[1729662001913,0.27863142,67149.0,67148.0,0.0002]
[1729662002114,0.231301,67149.0,67148.0,0.0002]
[1729662002515,0.231301,67149.0,67148.0,0.04489257]
[1729662002916,0.231301,67149.0,67148.0,0.0002]
[1729662005616,0.341301,67149.0,67148.0,0.0002]
[1729662005924,0.231301,67149.0,67148.0,0.0002]
[1729662009213,0.592101,67149.0,67148.0,0.0002]
[1729662010326,0.702101,67149.0,67148.0,0.0002]
[1729662010525,0.592101,67149.0,67148.0,0.0002]
[1729662015026,0.592101,67149.0,67147.0,0.0004]
[1729662015027,0.702101,67149.0,67147.0,0.0004]
[1729662015227,0.059602,67148.0,67147.0,0.0006]
[1729662017026,0.52308326,67148.0,67147.0,0.0006]
[1729662017829,0.059612,67137.0,67136.0,0.0004]
[1729662018021,0.42549292,67137.0,67136.0,0.0006]
[1729662018439,0.31549292,67137.0,67136.0,0.0006]
[1729662025232,0.378172,67137.0,67136.0,0.0006]
[1729662025735,0.40334391,67137.0,67136.0,0.0006]
[1729662028535,0.76414391,67137.0,67136.0,0.0006]
[1729662031641,0.65414391,67137.0,67136.0,0.0006]
[1729662032048,0.7555288,67137.0,67136.0,0.0006]
[1729662033842,0.8655288,67137.0,67136.0,0.0006]
[1729662035838,0.7555288,67137.0,67136.0,0.0006]
[1729662036039,0.8655288,67137.0,67136.0,0.0006]
[1729662039946,0.86553253,67137.0,67136.0,0.0006]
[1729662041148,0.76414391,67137.0,67136.0,0.0006]
[1729662042435,0.66558391,67137.0,67136.0,0.0006]
[1729662042642,0.76410391,67137.0,67136.0,0.0006]
[1729662044948,0.76410391,67137.0,67131.0,0.0004]
[1729662045146,0.279615,67133.0,67131.0,0.0004]
[1729662045453,0.279615,67133.0,67132.0,0.0004]
[1729662048643,0.640415,67133.0,67132.0,0.0004]
[1729662049252,0.279615,67133.0,67132.0,0.0004]
[1729662049453,0.640415,67133.0,67132.0,0.0004]
[1729662050055,0.6908,67133.0,67130.0,0.00223414]
[1729662050246,0.6908,67133.0,67123.0,0.05988718]
[1729662050247,0.059623,67124.0,67123.0,0.0450917]
[1729662050447,0.378183,67124.0,67123.0,0.0450917]
[1729662050654,0.378183,67124.0,67123.0,0.0006]
[1729662052654,0.268183,67124.0,67123.0,0.0006]
[1729662055063,0.29369977,67124.0,67123.0,0.0006]
[1729662055455,0.19513977,67124.0,67123.0,0.0006]
[1729662055758,0.29369977,67124.0,67123.0,0.0006]
[1729662056358,0.33998195,67124.0,67123.0,0.0006]
[1729662058663,0.33990195,67124.0,67123.0,0.0006]
[1729662060166,0.29361977,67124.0,67123.0,0.0006]
[1729662060654,0.3399498,67124.0,67123.0,0.0006]
[1729662060964,0.29361977,67124.0,67123.0,0.0006]
[1729662061269,0.33995166,67124.0,67123.0,0.0006]
[1729662061758,0.44995166,67124.0,67123.0,0.0006]
[1729662062161,0.44990418,67124.0,67123.0,0.0006]
[1729662070680,0.40361977,67124.0,67123.0,0.0006]
[1729662071069,0.30513977,67124.0,67123.0,0.0006]
[1729662071370,0.40361977,67124.0,67123.0,0.0006]
[1729662071671,0.29361977,67124.0,67123.0,0.0006]
[1729662076268,0.29361977,67124.0,67123.0,0.0452917]
[1729662076570,0.29361977,67124.0,67123.0,0.0006]
[1729662076876,0.29361977,67124.0,67123.0,0.0452917]
[1729662077085,0.29361977,67124.0,67123.0,0.0006]
[1729662077375,0.29361977,67124.0,67123.0,0.0452917]
[1729662077874,0.29361977,67124.0,67123.0,0.0006]
[1729662078077,0.29361977,67124.0,67123.0,0.0452917]
[1729662078375,0.29361977,67124.0,67123.0,0.0006]
[1729662078876,0.29361977,67124.0,67123.0,0.0453228]
[1729662079383,0.29361977,67124.0,67123.0,0.04532276]
[1729662079675,0.29361977,67124.0,67123.0,0.0006]
[1729662079876,0.19513977,67124.0,67123.0,0.06008718]
[1729662080174,0.29361977,67124.0,67123.0,0.0006]
[1729662081380,0.29361977,67124.0,67123.0,0.06008718]
[1729662081677,0.29361977,67124.0,67123.0,0.0006]
[1729662081875,0.29361977,67124.0,67123.0,0.06008718]
[1729662082570,0.29361977,67124.0,67123.0,0.0006]
[1729662083268,0.19513977,67124.0,67123.0,0.0006]
[1729662084476,0.24142982,67124.0,67123.0,0.0006]
[1729662084669,0.18180682,67124.0,67123.0,0.0006]
[1729662085271,0.18192184,67124.0,67123.0,0.0006]
[1729662085475,0.13551677,67124.0,67123.0,0.0006]
[1729662085671,0.13551677,67124.0,67123.0,0.0316]
[1729662085881,0.04637287,67124.0,67123.0,0.1416]
[1729662086070,0.11,67126.0,67124.0,0.059623]
[1729662086270,0.04644625,67125.0,67124.0,0.090823]
[1729662086473,0.11,67126.0,67124.0,0.090823]
[1729662086979,0.0463753,67125.0,67124.0,0.090823]
[1729662087475,0.0463753,67125.0,67124.0,0.0312]
[1729662087476,0.04629288,67125.0,67124.0,0.0312]
[1729662087783,0.10591588,67125.0,67124.0,0.0312]
[1729662088382,0.059623,67124.0,67123.0,0.0006]
[1729662088583,0.10591588,67124.0,67123.0,0.0008]
[1729662089089,0.21591588,67124.0,67123.0,0.0008]
[1729662090482,0.21580105,67124.0,67123.0,0.0008]
[1729662092475,0.169623,67124.0,67123.0,0.0008]
[1729662092675,0.530423,67124.0,67123.0,0.0008]
[1729662096986,0.530423,67124.0,67123.0,0.06044303]
[1729662100488,0.530423,67124.0,67123.0,0.0008]
[1729662102492,0.169623,67124.0,67123.0,0.0008]
[1729662114926,0.21598122,67124.0,67123.0,0.0008]
[1729662115623,0.169623,67124.0,67123.0,0.0008]
[1729662122422,0.21615443,67124.0,67123.0,0.0008]
[1729662130128,0.2161037,67124.0,67123.0,0.0008]
[1729662130535,0.169623,67124.0,67123.0,0.0008]
[1729662131829,0.279623,67124.0,67123.0,0.0008]
[1729662132027,0.279623,67124.0,67123.0,0.04554441]
[1729662132231,0.279623,67124.0,67123.0,0.0008]
[1729662137139,0.640423,67124.0,67123.0,0.0008]
[1729662137522,0.686529,67124.0,67123.0,0.0008]
[1729662137734,0.059629,67118.0,67108.0,0.3608]
[1729662137937,0.640431,67115.0,67114.0,0.0004]
[1729662138131,0.57637726,67115.0,67114.0,0.0004]
[1729662138630,0.530431,67115.0,67114.0,0.0004]
[1729662138823,0.57645354,67115.0,67114.0,0.0004]
[1729662139224,0.68645354,67115.0,67114.0,0.0004]
[1729662139634,0.5762149,67115.0,67114.0,0.0004]
[1729662141527,0.530431,67115.0,67114.0,0.0004]
[1729662142739,0.640431,67115.0,67114.0,0.0004]
[1729662144533,0.66562073,67115.0,67114.0,0.0004]
[1729662144737,0.059636,67110.0,67100.0,0.0002]
[1729662144941,0.530444,67101.0,67100.0,0.0004]
[1729662146931,0.55611005,67101.0,67100.0,0.0004]
[1729662160953,0.44611005,67101.0,67100.0,0.0004]
[1729662161159,0.48550605,67101.0,67100.0,0.0004]
[1729662161651,0.48550605,67101.0,67100.0,0.04514441]
[1729662162154,0.38646605,67101.0,67100.0,0.04514441]
[1729662162347,0.38646605,67101.0,67100.0,0.0004]
[1729662162542,0.38646605,67101.0,67100.0,0.04514441]
[1729662163445,0.38646605,67101.0,67100.0,0.0004]
[1729662164251,0.38646605,67101.0,67100.0,0.04501415]
[1729662164645,0.38646605,67101.0,67100.0,0.0004]
[1729662164852,0.44611005,67101.0,67100.0,0.0004]
[1729662167253,0.08531005,67101.0,67100.0,0.0004]
[1729662171248,0.08531005,67101.0,67100.0,0.0450705]
[1729662171448,0.19531005,67101.0,67100.0,0.0450705]
[1729662172555,0.19531005,67101.0,67100.0,0.0004]
[1729662174856,0.19531005,67101.0,67100.0,0.06005844]
[1729662175057,0.24075489,67101.0,67100.0,0.0004]
[1729662175960,0.07111089,67101.0,67100.0,0.0004]
[1729662176155,0.18111089,67101.0,67100.0,0.0004]
[1729662177152,0.24075489,67101.0,67100.0,0.0004]
[1729662178863,0.24080443,67101.0,67100.0,0.0004]
[1729662179451,0.18116043,67101.0,67100.0,0.0004]
[1729662181057,0.24080443,67101.0,67100.0,0.0004]
[1729662181468,0.29343778,67101.0,67100.0,0.0004]
[1729662183067,0.19531005,67101.0,67100.0,0.0004]
[1729662186372,0.19531005,67101.0,67100.0,0.04513241]
[1729662186578,0.19531005,67101.0,67100.0,0.0004]
[1729662189466,0.19531005,67101.0,67100.0,0.04513241]
[1729662191778,0.19531005,67101.0,67100.0,0.0004]
[1729662192165,0.08531005,67101.0,67100.0,0.0004]
[1729662192379,0.19531005,67101.0,67100.0,0.0004]
[1729662195283,0.19531005,67101.0,67100.0,0.04513241]
[1729662195475,0.19531005,67101.0,67100.0,0.0004]
[1729662195669,0.19531005,67101.0,67100.0,0.04513241]
[1729662195873,0.19531005,67101.0,67100.0,0.0004]
[1729662197167,0.19531005,67101.0,67100.0,0.04515352]
[1729662197374,0.19531005,67101.0,67100.0,0.0004]
[1729662197776,0.19531005,67101.0,67100.0,0.04515412]
[1729662197981,0.24080601,67101.0,67100.0,0.0004]
[1729662198381,0.29371176,67101.0,67100.0,0.0004]
[1729662198778,0.24080601,67101.0,67100.0,0.0004]
[1729662199480,0.29378696,67101.0,67100.0,0.0004]
[1729662203684,0.23414296,67101.0,67100.0,0.0004]
[1729662204590,0.23420539,67101.0,67100.0,0.0004]
[1729662204975,0.13566605,67101.0,67100.0,0.0004]
[1729662212995,0.18122084,67101.0,67100.0,0.0004]
[1729662213604,0.23411243,67101.0,67100.0,0.0004]
[1729662215502,0.09844638,67101.0,67100.0,0.060045]
[1729662216005,0.15555479,67101.0,67100.0,0.091045]
[1729662220207,0.11,67101.0,67100.0,0.091045]
[1729662220709,0.160116,67110.0,67100.0,0.0314]
[1729662220908,0.10048,67110.0,67103.0,0.10436102]
[1729662221202,0.11,67104.0,67103.0,0.059641]
[1729662221403,0.11,67104.0,67103.0,0.10436102]
[1729662221609,0.11,67105.0,67103.0,0.059642]
[1729662221798,0.11,67105.0,67104.0,0.10435644]
[1729662224214,0.11,67105.0,67104.0,0.059641]
[1729662225113,0.38656758,67111.0,67108.0,0.059638]
[1729662225405,0.11,67109.0,67108.0,0.059638]
[1729662228415,0.20889143,67109.0,67108.0,0.059638]
[1729662228905,0.20889143,67109.0,67105.0,0.3608]
[1729662229107,0.09883607,67108.0,67106.0,0.059639]
[1729662229312,0.04576089,67107.0,67106.0,0.059639]
[1729662230112,0.15576089,67107.0,67106.0,0.059639]
[1729662231505,0.15581997,67107.0,67106.0,0.059639]
[1729662234513,0.15567835,67107.0,67106.0,0.059639]
[1729662235212,0.11,67107.0,67106.0,0.059639]
[1729662237514,0.11,67107.0,67106.0,0.420439]
[1729662239917,0.11,67107.0,67106.0,0.46515444]
[1729662242114,0.38619414,67112.0,67106.0,0.40551544]
[1729662242319,0.49543414,67112.0,67111.0,0.059635]
[1729662244224,0.13463414,67112.0,67111.0,0.059635]
[1729662245816,0.00223574,67115.0,67112.0,0.059634]
[1729662246213,0.11,67113.0,67112.0,0.10434944]
[1729662246418,0.11,67113.0,67112.0,0.059634]
[1729662247014,0.11,67113.0,67112.0,0.10434944]
[1729662247826,0.13724135,67115.0,67111.0,0.04471544]
[1729662248020,0.13724135,67115.0,67114.0,0.059632]
[1729662248725,0.13724135,67115.0,67114.0,0.420432]
[1729662249115,0.13724135,67115.0,67114.0,0.46514744]
[1729662249515,0.13724135,67115.0,67114.0,0.420432]
[1729662249915,0.13724135,67115.0,67114.0,0.059632]
[1729662250316,0.23728301,67115.0,67114.0,0.059632]
[1729662253128,0.1022774,67115.0,67114.0,0.169632]
[1729662255419,0.2122774,67115.0,67114.0,0.059632]
[1729662256229,0.2122774,67115.0,67111.0,0.059835]
[1729662256529,0.11,67112.0,67111.0,0.060035]
[1729662256728,0.21004166,67112.0,67111.0,0.060035]
[1729662256923,0.26967566,67112.0,67111.0,0.060035]
[1729662258433,0.169634,67112.0,67111.0,0.060035]
[1729662260129,0.19494528,67112.0,67111.0,0.060035]
[1729662260931,0.19494528,67112.0,67111.0,0.0004]
[1729662264722,0.08494528,67112.0,67111.0,0.0004]
[1729662264941,0.29370528,67112.0,67111.0,0.0004]
[1729662265331,0.33998106,67112.0,67111.0,0.0004]
[1729662267728,0.24122106,67112.0,67111.0,0.0004]
[1729662271128,0.24131596,67112.0,67111.0,0.0004]
[1729662273139,0.24131596,67112.0,67111.0,0.060035]
[1729662273337,0.13531128,67112.0,67111.0,0.11969344]
[1729662273839,0.13531128,67112.0,67111.0,0.11965499]
[1729662274436,0.13531128,67112.0,67111.0,0.060035]
[1729662282841,0.13531128,67112.0,67111.0,0.0004]
[1729662283049,0.19494528,67112.0,67111.0,0.0004]
[1729662283547,0.29350528,67112.0,67111.0,0.06002317]
[1729662286558,0.29350528,67112.0,67111.0,0.0004]
[1729662288454,0.34007755,67112.0,67111.0,0.0004]
[1729662290552,0.34008832,67112.0,67111.0,0.0004]
[1729662291051,0.24152832,67112.0,67111.0,0.0004]
[1729662291251,0.07189432,67112.0,67111.0,0.060035]
[1729662291759,0.12595243,67112.0,67111.0,0.060035]
[1729662293050,0.23595243,67112.0,67111.0,0.060035]
[1729662295459,0.3608,67120.0,67111.0,0.0004]
[1729662295655,0.09856,67119.0,67118.0,0.059629]
[1729662295849,0.3608,67120.0,67117.0,0.05966944]
[1729662296050,0.4708,67120.0,67119.0,0.059628]
[1729662297253,0.3608,67120.0,67119.0,0.169628]
[1729662297459,0.11223578,67126.0,67124.0,0.059623]
[1729662297663,0.00223578,67126.0,67125.0,0.0447174]
[1729662297962,0.00223578,67126.0,67124.0,0.059623]
[1729662297963,0.00223578,67126.0,67124.0,0.1192462]
[1729662298156,0.00223578,67126.0,67124.0,0.1194462]
[1729662298356,0.11,67125.0,67124.0,0.059823]
[1729662299564,0.11,67125.0,67124.0,0.10449625]
[1729662300460,0.169623,67125.0,67124.0,0.0002]
[1729662300667,0.279623,67125.0,67124.0,0.0002]
[1729662300871,0.309723,67125.0,67124.0,0.0002]
[1729662301166,0.059629,67118.0,67117.0,0.0002]
[1729662301357,0.530429,67118.0,67117.0,0.0002]
[1729662301560,0.530429,67118.0,67117.0,0.0004]
[1729662301758,0.562729,67118.0,67117.0,0.0004]
[1729662302466,0.66276444,67118.0,67117.0,0.0004]
[1729662305274,0.65132444,67118.0,67117.0,0.0004]
[1729662305566,0.72902444,67118.0,67117.0,0.0004]
[1729662305768,0.75354903,67118.0,67117.0,0.0004]
[1729662308161,0.64354903,67118.0,67117.0,0.0004]
[1729662309065,0.28274903,67118.0,67117.0,0.0004]
[1729662309556,0.18418903,67118.0,67117.0,0.0004]
[1729662309864,0.28274903,67118.0,67117.0,0.0004]
[1729662310457,0.18271359,67118.0,67117.0,0.0004]
[1729662317469,0.28257347,67118.0,67117.0,0.0004]
[1729662324077,0.39257347,67118.0,67117.0,0.0004]
[1729662325465,0.29271359,67118.0,67117.0,0.0004]
[1729662330177,0.29271359,67118.0,67117.0,0.04514931]
[1729662332572,0.29271359,67118.0,67117.0,0.0004]
[1729662335578,0.18271359,67118.0,67117.0,0.0004]
[1729662336465,0.08415359,67118.0,67117.0,0.0004]
[1729662337064,0.08415359,67118.0,67117.0,0.04514931]
[1729662337673,0.08415359,67118.0,67117.0,0.0004]
[1729662340583,0.18422076,67118.0,67117.0,0.0004]
[1729662345685,0.18457421,67118.0,67117.0,0.0004]
[1729662345892,0.1306221,67118.0,67117.0,0.0004]
[1729662347682,0.08415359,67118.0,67117.0,0.0004]
[1729662355891,0.18467819,67118.0,67117.0,0.0004]
[1729662362788,0.08415359,67118.0,67117.0,0.0004]
[1729662377319,0.08415359,67118.0,67117.0,0.04513262]
[1729662377715,0.13035427,67118.0,67117.0,0.0004]
[1729662380417,0.18396978,67118.0,67117.0,0.0004]
[1729662382425,0.1840198,67118.0,67117.0,0.0004]
[1729662386529,0.1243908,67118.0,67117.0,0.0004]
[1729662386738,0.2940198,67118.0,67117.0,0.0004]
[1729662387031,0.34031293,67118.0,67117.0,0.0004]
[1729662387230,0.29410097,67118.0,67117.0,0.0004]
[1729662392721,0.19415359,67118.0,67117.0,0.0004]
[1729662392921,0.19415359,67118.0,67117.0,0.04513262]
[1729662393430,0.19415359,67118.0,67117.0,0.0004]
[1729662399434,0.19415359,67118.0,67112.0,0.04473262]
[1729662399626,0.059634,67112.0,67107.0,0.04473262]
[1729662399826,0.059634,67112.0,67111.0,0.0006]
[1729662400029,0.169634,67112.0,67111.0,0.0006]
[1729662400231,0.21546455,67112.0,67111.0,0.0006]
[1729662401426,0.169634,67112.0,67111.0,0.0006]
[1729662401635,0.21522351,67112.0,67111.0,0.0006]
[1729662402435,0.169634,67112.0,67111.0,0.0006]
[1729662403324,0.530434,67112.0,67111.0,0.0006]
[1729662407736,0.57604648,67112.0,67111.0,0.0006]
[1729662408629,0.059639,67106.0,67105.0,0.0002]
[1729662408833,0.279639,67106.0,67105.0,0.0002]
[1729662409137,0.279639,67106.0,67105.0,0.0004]
[1729662417234,0.30430711,67106.0,67105.0,0.0004]
[1729662418547,0.40422711,67106.0,67105.0,0.0004]
[1729662421751,0.18422711,67106.0,67105.0,0.0004]
[1729662421954,0.29422711,67106.0,67105.0,0.0004]
[1729662423153,0.29322711,67106.0,67105.0,0.0004]
[1729662424957,0.29322711,67106.0,67105.0,0.04513262]
[1729662425547,0.29322711,67106.0,67105.0,0.0004]
[1729662425860,0.23358811,67106.0,67105.0,0.0004]
[1729662426559,0.29322711,67106.0,67105.0,0.0004]
[1729662426756,0.19430711,67106.0,67105.0,0.0004]
[1729662429253,0.02466811,67106.0,67105.0,0.0004]
[1729662429456,0.3608,67107.0,67105.0,0.06004]
[1729662429658,0.3608,67107.0,67106.0,0.092439]
[1729662429957,0.420432,67115.0,67109.0,0.059637]
[1729662429958,0.11,67113.0,67109.0,0.059637]
[1729662430263,0.520112,67115.0,67110.0,0.0654]
[1729662430459,0.059634,67112.0,67110.0,0.0654]
[1729662430761,0.46048,67115.0,67110.0,0.0654]
[1729662430952,0.48486337,67115.0,67110.0,0.0654]
[1729662431253,0.38594337,67115.0,67110.0,0.0654]
[1729662431452,0.11,67111.0,67110.0,0.0654]
[1729662432558,0.15598313,67111.0,67110.0,0.0654]
[1729662432752,0.11,67111.0,67110.0,0.0654]
[1729662436361,0.11,67113.0,67112.0,0.059634]
[1729662436554,0.11,67113.0,67112.0,0.420434]
[1729662436965,0.02514337,67115.0,67114.0,0.059632]
[1729662437264,0.059625,67122.0,67116.0,0.05963]
[1729662437460,0.11,67117.0,67116.0,0.05963]
[1729662439155,0.11,67117.0,67112.0,0.420434]
[1729662439360,0.11,67117.0,67112.0,0.420634]
[1729662439566,0.11,67117.0,67113.0,0.059633]
[1729662439763,0.38602504,67124.0,67114.0,0.11]
[1729662439969,0.059625,67123.0,67119.0,0.169628]
[1729662440166,0.11,67120.0,67119.0,0.059628]
[1729662440762,0.38602504,67124.0,67120.0,0.059627]
[1729662440969,0.11,67122.0,67121.0,0.059626]
[1729662441264,0.11,67122.0,67118.0,0.059629]
[1729662441454,0.11,67122.0,67118.0,0.059829]
[1729662441657,0.11,67120.0,67118.0,0.059829]
[1729662442771,0.11,67120.0,67119.0,0.059628]
[1729662445474,0.0317,67129.0,67118.0,0.1102]
[1729662445773,0.11,67128.0,67125.0,0.11]
[1729662445976,0.11,67128.0,67126.0,0.059621]
[1729662446161,0.002235,67132.0,67125.0,0.141]
[1729662446162,0.11,67131.0,67125.0,0.141]
[1729662446362,0.002235,67132.0,67131.0,0.169617]
[1729662446573,0.002235,67132.0,67131.0,0.059617]
[1729662446766,0.112235,67132.0,67131.0,0.059617]
[1729662446967,0.002235,67132.0,67131.0,0.059617]
[1729662447273,0.002235,67132.0,67131.0,0.169617]
[1729662447467,0.04882818,67132.0,67131.0,0.169617]
[1729662448077,0.002235,67132.0,67131.0,0.169617]
[1729662448370,0.002235,67132.0,67131.0,0.11]
[1729662449675,0.002235,67132.0,67131.0,0.169617]
[1729662451782,0.11,67137.0,67131.0,0.11]
[1729662451972,0.169612,67137.0,67132.0,0.059616]
[1729662452172,0.11,67134.0,67132.0,0.059616]
[1729662452386,0.11,67134.0,67131.0,0.11]
[1729662452580,0.11,67134.0,67133.0,0.059615]
[1729662453582,0.0303,67141.0,67131.0,0.1102]
[1729662453773,0.199909,67141.0,67137.0,0.4708]
[1729662453978,0.169611,67139.0,67137.0,0.4708]
[1729662454380,0.11,67139.0,67137.0,0.4708]
[1729662456183,0.11,67139.0,67137.0,0.3608]
[1729662456887,0.11,67139.0,67137.0,0.420412]
[1729662457574,0.0550903,67141.0,67137.0,0.3608]
[1729662458185,0.11,67139.0,67137.0,0.3608]
[1729662460577,0.11,67139.0,67137.0,0.420412]
[1729662462085,0.11,67139.0,67137.0,0.3608]
[1729662465581,0.11,67139.0,67137.0,0.420411]
[1729662466192,0.11,67139.0,67138.0,0.059611]
[1729662467694,0.11,67139.0,67137.0,0.420412]
[1729662468094,0.11,67139.0,67137.0,0.420612]
[1729662470585,0.04682202,67138.0,67137.0,0.420612]
[1729662471490,0.10119602,67138.0,67137.0,0.420612]
[1729662472590,0.10125602,67138.0,67137.0,0.420612]
[1729662473886,0.10125602,67138.0,67137.0,0.530612]
[1729662476596,0.10125602,67138.0,67137.0,0.420612]
[1729662477295,0.21125602,67138.0,67137.0,0.420612]
[1729662477694,0.11,67138.0,67137.0,0.420612]
[1729662480297,0.11,67138.0,67137.0,0.4802352]